bitfinex/quotes_ETHUSD_20250518
["timestamp","ask_amount","ask_price","bid_price","bid_amount"]
[1747539937017,19.33074589,2479.7,2479.6,1.97767585]
[1747539938943,15.298,2479.7,2479.6,1.97767585]
[1747539939123,19.33074589,2479.7,2479.6,1.97767585]
[1747539940842,19.33074589,2479.7,2479.6,1.16257585]
[1747539943850,19.31674589,2479.7,2479.6,1.16257585]
[1747539945651,11.67474589,2479.7,2479.6,1.16257585]
[1747539945816,15.283,2479.7,2479.6,1.16257585]
[1747539946350,19.31574589,2479.7,2479.6,1.16257585]
[1747539946552,4.03274589,2479.7,2479.6,1.16257585]
[1747539946715,15.283,2479.7,2479.6,1.16257585]
[1747539948554,19.31574589,2479.7,2479.6,1.16257585]
[1747539949558,15.283,2479.7,2479.6,1.16257585]
[1747539949753,7.642,2479.7,2479.6,1.16257585]
[1747539950438,11.67474589,2479.7,2479.6,1.16257585]
[1747539950623,7.642,2479.7,2479.6,1.16257585]
[1747539954056,11.67474589,2479.7,2479.6,1.16257585]
[1747539956362,11.67474589,2479.7,2479.6,1.64498872]
[1747539956940,7.642,2479.7,2479.6,1.64498872]
[1747539957142,11.67474589,2479.7,2479.6,1.64498872]
[1747539960340,15.278,2479.8,2479.6,1.64498872]
[1747539960672,15.278,2479.8,2479.7,0.77631051]
[1747539960879,5.83037335,2480.1,2479.8,0.55]
[1747539961076,5.83037335,2480.1,2479.8,7.43332268]
[1747539961279,5.83037335,2480.1,2479.8,7.393]
[1747539961776,5.83037335,2480.1,2480.0,1.03241287]
[1747539962674,5.83037335,2480.1,2480.0,1.25872338]
[1747539962869,5.83037335,2480.1,2480.0,1.64498872]
[1747539964391,5.83037335,2480.1,2480.0,1.16257585]
[1747539967386,9.86246883,2480.1,2480.0,1.16257585]
[1747539970405,9.86246883,2480.1,2480.0,0.61257585]
[1747539970787,9.86246883,2480.1,2480.0,1.16257585]
[1747539977786,9.86246883,2480.1,2480.0,0.93626534]
[1747539983591,17.48946883,2480.1,2480.0,0.93626534]
[1747539984424,17.48946883,2480.1,2480.0,1.16262843]
[1747539989149,9.86246883,2480.1,2480.0,1.16262843]
[1747539989325,25.11846883,2480.1,2480.0,1.16262843]
[1747539990152,9.86246883,2480.1,2480.0,1.16262843]
[1747539990346,25.11846883,2480.1,2480.0,1.16262843]
[1747539990535,9.86246883,2480.1,2480.0,1.16262843]
[1747539990750,21.08637335,2480.1,2480.0,1.16262843]
[1747539990924,13.46137335,2480.1,2480.0,1.97242843]
[1747539991127,21.08637335,2480.1,2480.0,1.97242843]
[1747539995251,25.11646883,2480.1,2480.0,1.97242843]
[1747539995417,25.11646883,2480.1,2480.0,1.16262843]
[1747539997345,21.08437335,2480.1,2480.0,1.16262843]
[1747539999250,25.11646883,2480.1,2480.0,1.16262843]
[1747539999455,21.08437335,2480.1,2480.0,1.16262843]
[1747540000050,5.83037335,2480.1,2480.0,1.16262843]
[1747540000364,21.08237335,2480.1,2480.0,1.16262843]
[1747540001754,21.08137335,2480.1,2480.0,1.6450413]
[1747540001953,5.83037335,2480.1,2480.0,1.6450413]
[1747540002252,21.08137335,2480.1,2480.0,1.6450413]
[1747540004563,5.83037335,2480.1,2480.0,1.6450413]
[1747540004855,21.06837335,2480.1,2480.0,1.6450413]
[1747540007261,5.83037335,2480.1,2480.0,1.6450413]
[1747540007461,21.06737335,2480.1,2480.0,1.6450413]
[1747540009864,13.44937335,2480.1,2480.0,1.6450413]
[1747540010159,5.83037335,2480.1,2480.0,6.38621782]
[1747540010531,5.83037335,2480.1,2480.0,7.14261782]
[1747540011463,5.83037335,2480.1,2480.0,7.30277811]
[1747540012171,5.83037335,2480.1,2480.0,13.36277811]
[1747540013072,5.83037335,2480.1,2480.0,9.33052005]
[1747540014269,5.83037335,2480.1,2480.0,8.68794689]
[1747540015165,5.83037335,2480.1,2480.0,12.72020495]
[1747540016474,5.83037335,2480.1,2480.0,12.71591495]
[1747540019087,12.40202191,2481.2,2480.9,0.55]
[1747540019455,1.26124675,2481.1,2481.0,0.22636309]
[1747540019639,12.40202191,2481.2,2481.1,0.55]
[1747540020272,12.40202191,2481.2,2480.9,0.55]
[1747540020461,7.618,2481.1,2480.9,0.55]
[1747540021475,7.618,2481.1,2481.0,0.77614342]
[1747540023269,11.64847035,2481.1,2481.0,0.77614342]
[1747540023451,11.64847035,2481.1,2481.0,0.22614342]
[1747540023452,12.40217035,2481.1,2481.0,0.22614342]
[1747540023848,13.83210028,2481.1,2481.0,0.22614342]
[1747540024068,21.83210028,2481.1,2481.0,0.22614342]
[1747540024370,4.03095775,2480.8,2480.7,0.48249259]
[1747540024570,5.62103489,2480.8,2480.7,0.48249259]
[1747540025085,16.81707714,2480.8,2480.7,1.03249259]
[1747540025263,20.84803489,2480.8,2480.7,1.03249259]
[1747540026159,5.62103489,2480.8,2480.7,1.03249259]
[1747540026358,20.84803489,2480.8,2480.7,0.55]
[1747540028356,20.84703489,2480.8,2480.7,0.55]
[1747540035100,20.84703489,2480.8,2480.2,0.48249259]
[1747540035261,4.03177035,2480.3,2480.2,0.48249259]
[1747540035466,11.63877035,2480.3,2480.2,0.48249259]
[1747540035684,11.63877035,2480.3,2480.2,1.25848604]
[1747540035978,19.24577035,2480.3,2480.2,0.70848604]
[1747540036379,19.24577035,2480.3,2480.2,1.16169997]
[1747540036586,19.24577035,2480.3,2480.2,0.61169997]
[1747540037109,20.05194749,2480.3,2480.2,1.16169997]
[1747540037310,28.87474749,2480.3,2480.2,0.61169997]
[1747540037985,28.87474749,2480.3,2480.2,0.38570652]
[1747540038982,4.03265765,2479.8,2479.6,0.55]
[1747540039267,19.24665765,2479.8,2479.6,0.55]
[1747540039574,20.06945765,2479.8,2479.5,6.36927491]
[1747540039733,4.03290853,2479.6,2479.5,6.36927491]
[1747540039941,4.03290853,2479.6,2479.5,6.91927491]
[1747540040337,4.03290853,2479.6,2479.5,6.99555863]
[1747540040537,4.03290853,2479.6,2479.5,7.2214516]
[1747540040786,4.03290853,2479.6,2479.5,6.6714516]
[1747540041279,4.03290853,2479.6,2479.5,7.2214516]
[1747540042073,4.03290853,2479.6,2479.5,0.93555863]
[1747540042375,4.58690025,2479.6,2479.5,0.93555863]
[1747540043942,4.58690025,2479.6,2479.5,0.55]
[1747540044142,4.03290853,2479.6,2479.5,0.55]
[1747540045891,17.417,2479.8,2479.6,0.55]
[1747540046090,19.24774589,2479.7,2479.6,0.55]
[1747540046586,15.215,2479.7,2479.6,0.55]
[1747540046794,15.214,2479.7,2479.5,0.55]
[1747540046956,17.417,2479.8,2479.5,0.55]
[1747540047155,7.609,2479.7,2479.5,5.12423756]
[1747540047473,15.214,2479.7,2479.6,0.38455783]
[1747540047786,15.214,2479.7,2479.6,1.15988869]
[1747540048095,7.609,2479.7,2479.6,1.15988869]
[1747540051097,7.609,2479.7,2479.6,7.21988869]
[1747540051888,17.417,2479.8,2479.7,1.3088]
[1747540052264,17.417,2479.8,2479.7,5.34154589]
[1747540052488,18.1884,2480.5,2479.9,0.55]
[1747540052696,15.213,2480.4,2480.1,0.55]
[1747540053273,7.609,2480.4,2480.1,4.58209505]
[1747540053911,7.609,2480.4,2480.3,4.58177035]
[1747540054091,7.609,2480.4,2480.3,0.77557448]
[1747540054393,17.417,2480.5,2480.3,0.77557448]
[1747540054778,17.417,2480.5,2480.4,0.93455783]
[1747540060312,17.417,2480.5,2480.4,5.78066563]
[1747540060487,17.417,2480.5,2480.4,7.36792013]
[1747540060694,17.417,2480.5,2480.4,3.33631233]
[1747540060935,17.417,2480.5,2480.4,3.56191545]
[1747540061417,17.417,2480.5,2480.4,1.97466095]
[1747540062206,7.608,2480.6,2480.4,1.97466095]
[1747540062399,7.608,2480.6,2480.5,0.55]
[1747540062920,7.608,2480.6,2480.5,0.77560312]
[1747540064393,7.608,2480.6,2480.5,1.16016095]
[1747540064921,4.03112087,2480.7,2480.5,1.16016095]
[1747540065085,19.23812087,2480.7,2480.5,1.16016095]
[1747540065288,4.03128275,2480.6,2480.5,1.16016095]
[1747540066026,4.03128275,2480.6,2480.5,0.93455783]
[1747540066987,4.03177035,2480.3,2480.2,0.55]
[1747540068046,4.03177035,2480.3,2480.2,0.77555969]
[1747540068345,4.03177035,2480.3,2480.2,1.16051447]
[1747540069331,4.03169638,2480.4,2480.2,1.16051447]
[1747540069506,4.03169638,2480.4,2480.3,0.93495478]
[1747540071553,4.03150051,2480.5,2480.3,0.93495478]
[1747540071697,4.03136448,2480.6,2480.3,0.55]
[1747540073607,4.03146939,2480.5,2480.4,0.38516782]
[1747540074205,7.596,2480.6,2480.5,0.55]
[1747540074404,15.194,2480.6,2480.5,0.55]
[1747540074648,19.22528275,2480.6,2480.5,0.55]
[1747540075201,4.0316078,2480.4,2480.3,0.55]
[1747540075643,4.03181465,2480.3,2480.0,1.28389259]
[1747540075952,4.03181465,2480.3,2480.1,0.55]
[1747540076102,4.03181465,2480.3,2480.2,0.22596363]
[1747540076303,4.03168184,2480.4,2480.2,0.22596363]
[1747540076515,4.03177035,2480.3,2480.2,0.22596363]
[1747540076735,4.03177035,2480.3,2480.2,0.61159333]
[1747540077157,4.03167598,2480.4,2480.3,0.55]
[1747540077522,4.03167598,2480.4,2480.3,0.77596363]
[1747540077726,4.03167598,2480.4,2480.3,1.16159333]
[1747540080358,0.8137,2480.6,2480.3,1.16159333]
[1747540080561,7.598,2480.5,2480.3,1.16159333]
[1747540080764,21.44503719,2480.8,2480.3,5.84762857]
[1747540080953,7.598,2480.7,2480.5,0.55]
[1747540081557,17.414,2480.8,2480.6,0.3856297]
[1747540081745,25.012,2480.8,2480.7,0.77596363]
[1747540081946,17.414,2480.8,2480.7,0.77596363]
[1747540082164,15.192,2481.1,2480.9,0.55]
[1747540082469,7.598,2481.0,2480.9,0.55]
[1747540083162,7.598,2481.0,2480.9,0.77630929]
[1747540083566,11.6286328,2481.0,2480.9,1.64443158]
[1747540084552,11.6286328,2481.0,2480.9,1.64443113]
[1747540085082,11.6286328,2481.0,2480.9,1.64433995]
[1747540085678,11.6286328,2481.0,2480.9,1.41812229]
[1747540085855,11.6286328,2481.0,2480.9,1.64433076]
[1747540086264,11.6286328,2481.0,2480.9,1.16183817]
[1747540088278,11.6286328,2481.0,2480.9,1.16177992]
[1747540089493,15.188,2481.0,2480.9,1.16177992]
[1747540090357,15.188,2481.0,2480.9,1.16175646]
[1747540090742,15.187,2481.0,2480.9,1.16175646]
[1747540090942,4.0304787,2481.1,2480.9,1.16175646]
[1747540091175,15.187,2481.0,2480.9,1.16175646]
[1747540091479,15.187,2481.0,2480.9,0.77612676]
[1747540091842,15.187,2481.0,2480.9,0.55]
[1747540092777,4.03021152,2481.3,2480.9,0.55]
[1747540093075,4.85502592,2481.5,2480.9,0.55]
[1747540093275,19.21611299,2481.4,2481.1,0.55]
[1747540093476,4.03011299,2481.4,2481.1,0.55]
[1747540093677,15.186,2481.3,2481.1,0.55]
[1747540093881,4.03011299,2481.4,2481.2,0.93539861]
[1747540094183,19.21614548,2481.3,2481.2,0.93539861]
[1747540095283,15.186,2481.3,2481.2,0.93539861]
[1747540095443,19.21614548,2481.3,2481.2,0.93539861]
[1747540096580,19.21514548,2481.3,2481.2,0.93539861]
[1747540098594,7.597,2481.3,2481.2,0.93539861]
[1747540098756,15.176,2481.3,2481.2,0.93539861]
[1747540098947,17.414,2481.6,2481.3,0.55]
[1747540099152,25.002,2481.6,2481.3,0.55]
[1747540099370,4.02991181,2481.5,2481.3,0.55]
[1747540099887,36.61872817,2481.6,2481.3,0.55]
[1747540100385,36.61865828,2481.6,2481.5,0.55]
[1747540102557,25.002,2481.6,2481.5,0.55]
[1747540102757,32.588,2481.6,2481.5,0.55]
[1747540103989,32.588,2481.6,2481.5,0.93506174]
[1747540105052,25.002,2481.6,2481.5,0.93506174]
[1747540105493,29.03165828,2481.6,2481.5,0.93506174]
[1747540106181,29.78315828,2481.6,2481.5,0.93506174]
[1747540106380,29.78315828,2481.6,2481.5,0.38506174]
[1747540107187,4.03014548,2481.3,2481.2,6.61]
[1747540107697,4.02989332,2481.5,2481.3,0.55]
[1747540107859,15.171,2481.4,2481.3,0.55]
[1747540108395,7.587,2481.5,2481.3,1.11329565]
[1747540108598,7.587,2481.5,2481.3,1.49868423]
[1747540110118,36.61470112,2481.6,2481.4,0.38538858]
[1747540111060,21.44370112,2481.6,2481.5,0.38538858]
[1747540111266,36.61365828,2481.6,2481.5,0.93538858]
[1747540113295,32.584,2481.6,2481.5,0.93538858]
[1747540113498,21.44365828,2481.6,2481.5,0.93538858]
[1747540113807,36.61365828,2481.6,2481.5,0.93538858]
[1747540114296,32.584,2481.6,2481.5,0.93538858]
[1747540114899,17.414,2481.6,2481.5,0.93538858]
[1747540115204,15.169,2481.7,2481.6,0.55]
[1747540115785,15.169,2481.7,2481.6,0.93538858]
[1747540117108,4.02922117,2481.9,2481.6,0.93538858]
[1747540117412,3.97922117,2481.9,2481.6,0.93538858]
[1747540117578,15.168,2481.8,2481.6,0.93538858]
[1747540118098,19.19734091,2481.8,2481.6,0.93538858]
[1747540119237,4.02934091,2481.8,2481.6,0.93538858]
[1747540119382,19.19734091,2481.8,2481.7,0.93538858]
[1747540119708,11.61634091,2481.8,2481.7,0.93538858]
[1747540119909,19.19734091,2481.8,2481.7,0.93538858]
[1747540125917,11.61634091,2481.8,2481.7,0.93538858]
[1747540126093,19.19534091,2481.8,2481.7,0.93538858]
[1747540127825,7.587,2481.8,2481.7,0.93538858]
[1747540128128,15.165,2481.8,2481.7,0.93538858]
[1747540128326,4.0292842,2481.9,2481.7,0.93538858]
[1747540128533,15.157,2481.8,2481.7,0.93538858]
[1747540128896,7.579,2481.8,2481.7,0.93538858]
[1747540129588,4.79872729,2482.1,2481.8,0.55]
[1747540129789,15.157,2482.0,2481.8,0.55]
[1747540130043,19.18602141,2482.0,2481.8,0.55]
[1747540130342,15.157,2482.0,2481.8,0.55]
[1747540130557,15.156,2482.0,2481.8,1.84432533]
[1747540130936,15.156,2482.0,2481.9,0.93538858]
[1747540131521,19.18500886,2482.0,2481.9,0.93538858]
[1747540131936,11.60800886,2482.0,2481.9,0.93538858]
[1747540139017,12.38630886,2482.0,2481.9,0.93538858]
[1747540145023,13.81623879,2482.0,2481.9,0.38538858]
[1747540145999,4.02933354,2481.8,2481.7,0.38538858]
[1747540146168,4.81853354,2481.8,2481.7,0.38538858]
[1747540146788,6.24846347,2481.8,2481.7,0.38538858]
[1747540147080,4.02998307,2481.4,2481.3,1.03249259]
[1747540147381,19.93858307,2481.4,2481.3,1.03249259]
[1747540147963,19.93858307,2481.4,2481.3,0.93608033]
[1747540150789,19.93858307,2481.4,2481.3,0.55]
[1747540151099,15.15,2481.4,2481.3,0.55]
[1747540151688,4.02956851,2481.7,2481.6,0.55]
[1747540151991,4.02930871,2481.9,2481.6,0.55]
[1747540152174,15.151,2481.7,2481.6,0.55]
[1747540152896,15.151,2481.7,2481.6,0.93570494]
[1747540153117,19.18007005,2482.0,2481.6,1.51547283]
[1747540153263,15.151,2482.0,2481.8,0.55]
[1747540153597,7.579,2482.0,2481.8,0.55]
[1747540153776,7.579,2482.0,2481.8,6.61]
[1747540154095,7.579,2482.0,2481.9,1.33277049]
[1747540154804,7.579,2482.0,2481.9,1.71847543]
[1747540155811,19.1778867,2482.1,2482.0,0.55]
[1747540156303,19.9682867,2482.1,2482.0,0.55]
[1747540156840,19.9682867,2482.1,2482.0,0.93570494]
[1747540158127,11.6068867,2482.1,2482.0,0.93570494]
[1747540158269,4.81896999,2482.3,2482.0,1.63527543]
[1747540158270,4.02876063,2482.2,2482.0,1.63527543]
[1747540158472,15.14,2482.1,2482.0,1.63527543]
[1747540158780,15.14,2482.1,2482.0,1.24957049]
[1747540159470,15.14,2482.1,2482.0,0.9355128]
[1747540159673,19.16884654,2482.1,2482.0,0.9355128]
[1747540160507,11.59884654,2482.1,2482.0,0.9355128]
[1747540161004,12.38924654,2482.1,2482.0,0.9355128]
[1747540161570,12.38924654,2482.1,2482.0,0.3855128]
[1747540162101,4.02900886,2482.0,2481.9,0.55]
[1747540162419,4.02965828,2481.6,2481.5,0.48249259]
[1747540162570,19.16865828,2481.6,2481.5,0.48249259]
[1747540162912,19.16865828,2481.6,2481.5,1.03249259]
[1747540163414,19.16865828,2481.6,2481.5,0.48249259]
[1747540163569,19.95905828,2481.6,2481.5,0.48249259]
[1747540163767,37.36205828,2481.6,2481.5,0.48249259]
[1747540163973,45.36205828,2481.6,2481.5,0.48249259]
[1747540165672,71.22427921,2481.6,2481.5,0.48249259]
[1747540165850,4.02998307,2481.4,2481.3,0.64257316]
[1747540166039,43.302305,2481.4,2481.3,0.64257316]
[1747540166236,0.7904,2480.6,2480.3,0.64257316]
[1747540166425,19.17044527,2480.5,2480.4,0.55]
[1747540167346,4.0316078,2480.4,2480.3,0.64257316]
[1747540167961,4.0316078,2480.4,2480.3,1.19257316]
[1747540169585,4.0316078,2480.4,2480.3,0.55]
[1747540170969,15.143,2480.4,2480.3,0.55]
[1747540171340,15.143,2480.4,2480.3,1.211]
[1747540171882,15.143,2480.6,2480.4,1.3352]
[1747540173356,19.17327006,2480.7,2480.4,1.3352]
[1747540174277,4.03136342,2480.6,2480.4,1.3352]
[1747540176706,19.17319455,2480.7,2480.4,1.3352]
[1747540176906,15.142,2480.7,2480.4,8.20082]
[1747540177917,19.17313529,2480.7,2480.4,8.20082]
[1747540178417,4.03133118,2480.6,2480.4,8.20082]
[1747540178717,19.17316504,2480.7,2480.4,8.20082]
[1747540179722,15.142,2480.7,2480.4,8.20082]
[1747540179926,15.142,2480.7,2480.6,0.55]
[1747540183525,19.17312024,2480.7,2480.6,0.55]
[1747540186834,11.60412024,2480.7,2480.6,0.55]
[1747540191111,12.37702024,2480.7,2480.6,0.55]
[1747540192124,4.03148371,2480.5,2480.3,0.55]
[1747540192647,4.03148371,2480.5,2480.4,0.93585039]
[1747540196123,4.03134674,2480.6,2480.4,0.93585039]
[1747540196633,4.03134674,2480.6,2480.5,0.38585039]
[1747540198851,7.565,2480.6,2480.5,0.93585039]
[1747540199663,11.59628275,2480.6,2480.5,0.93585039]
[1747540200659,7.565,2480.6,2480.5,0.93585039]
[1747540201167,11.59628275,2480.6,2480.5,0.93585039]
[1747540202275,12.38128275,2480.6,2480.5,0.38585039]
[1747540204073,4.03209548,2480.1,2480.0,0.64257316]
[1747540204262,4.03209548,2480.1,2480.0,1.19257316]
[1747540204460,4.03209548,2480.1,2480.0,0.93650151]
[1747540205282,11.59999362,2480.2,2480.0,0.93650151]
[1747540205455,7.568,2480.2,2480.1,0.93650151]
[1747540209284,11.5999329,2480.2,2480.1,0.93650151]
[1747540213010,12.3638329,2480.2,2480.1,0.93650151]
[1747540216294,13.79376283,2480.2,2480.1,0.38650151]
[1747540216685,4.03254384,2479.9,2479.6,0.55]
[1747540217018,4.03254384,2479.9,2479.5,6.06]
[1747540217019,7.563,2479.8,2479.5,6.06]
[1747540217224,7.563,2479.8,2479.6,0.55]
[1747540217225,11.59566648,2479.8,2479.6,0.55]
[1747540217626,4.03214035,2480.1,2479.8,0.55]
[1747540217827,0.7665,2480.4,2479.8,0.55]
[1747540218126,15.126,2480.2,2480.0,0.55]
[1747540218429,4.03209548,2480.1,2480.0,0.55]
[1747540218821,4.03209548,2480.1,2480.0,0.93588898]
[1747540219193,4.79859548,2480.1,2480.0,0.38588898]
[1747540220138,4.03225806,2480.0,2479.9,0.55]
[1747540220536,4.03225806,2480.0,2479.6,0.64257316]
[1747540220734,4.03274589,2479.7,2479.6,0.64257316]
[1747540221035,19.15874589,2479.7,2479.6,1.19257316]
[1747540221407,19.15874589,2479.7,2479.6,0.9359336]
[1747540222938,15.126,2479.7,2479.6,0.9359336]
[1747540223137,7.563,2479.9,2479.7,0.55]
[1747540223327,19.15734084,2480.0,2479.7,0.55]
[1747540223522,18.15734084,2480.0,2479.7,0.55]
[1747540223931,7.563,2479.9,2479.7,0.55]
[1747540224133,7.563,2479.9,2479.8,1.12835458]
[1747540224315,17.415,2480.2,2479.9,0.55]
[1747540224671,15.126,2480.1,2480.0,1.3648]
[1747540225234,15.126,2480.1,2480.0,1.7507336]
[1747540225752,17.415,2480.2,2480.0,1.7507336]
[1747540226053,32.541,2480.2,2480.0,1.7507336]
[1747540226457,32.541,2480.2,2480.1,0.3859336]
[1747540227673,17.415,2480.2,2480.1,0.9359336]
[1747540227959,17.415,2480.2,2480.1,5.19810244]
[1747540228258,17.415,2480.2,2480.1,1.16600696]
[1747540229328,19.15682947,2480.3,2480.2,0.55]
[1747540229734,4.0319329,2480.2,2480.1,0.55]
[1747540230856,4.0319329,2480.2,2480.1,0.93592491]
[1747540231531,15.125,2480.3,2480.2,0.55]
[1747540231868,7.562,2480.3,2480.2,0.55]
[1747540232052,7.562,2480.3,2480.2,0.38592491]
[1747540232053,15.124,2480.3,2480.2,0.38592491]
[1747540236870,4.03174536,2480.4,2480.2,0.38592491]
[1747540237174,7.563,2480.3,2480.2,1.15488704]
[1747540237373,11.59477035,2480.3,2480.2,1.16218427]
[1747540238663,7.563,2480.3,2480.2,1.16218427]
[1747540241598,11.59477035,2480.3,2480.2,1.16218427]
[1747540242056,11.59477035,2480.3,2480.2,0.61218427]
[1747540242698,11.59477035,2480.3,2480.2,0.38592491]
[1747540243054,4.03177035,2480.3,2480.2,0.93592491]
[1747540243256,19.15377035,2480.3,2480.2,0.93592491]
[1747540243453,19.15377035,2480.3,2480.2,0.55]
[1747540244588,19.15377035,2480.3,2479.8,1.45057316]
[1747540244589,4.03242066,2479.9,2479.8,0.48209639]
[1747540245055,4.03242066,2479.9,2479.8,0.70837648]
[1747540245389,4.03242066,2479.9,2479.8,1.09440969]
[1747540245585,4.85352066,2479.9,2479.8,1.09440969]
[1747540245793,4.85352066,2479.9,2479.8,0.8681296]
[1747540246090,4.85352066,2479.9,2479.8,0.38603321]
[1747540247101,4.03274222,2479.8,2479.6,0.55]
[1747540247393,15.122,2479.7,2479.6,0.55]
[1747540248492,15.122,2479.7,2479.6,0.77614371]
[1747540248693,15.122,2479.7,2479.6,1.16203766]
[1747540250554,4.03274222,2479.8,2479.6,1.16203766]
[1747540250990,15.118,2479.7,2479.6,1.16203766]
[1747540253615,19.15074589,2479.7,2479.6,1.16203766]
[1747540255213,4.03274589,2479.7,2479.6,1.16203766]
[1747540255363,19.15174589,2479.7,2479.6,1.16203766]
[1747540256060,15.119,2479.7,2479.6,1.16203766]
[1747540261915,7.56,2479.7,2479.6,1.16203766]
[1747540262086,15.119,2479.7,2479.6,1.16203766]
[1747540262286,15.119,2479.7,2479.6,2.0848559]
[1747540262505,7.56,2479.7,2479.6,6.11776443]
[1747540262809,15.119,2479.7,2479.6,6.11776443]
[1747540263611,22.22659042,2480.1,2479.6,6.11776443]
[1747540263815,15.118,2479.7,2479.6,5.19494619]
[1747540264413,15.118,2479.7,2479.6,1.16203766]
[1747540265036,22.22659042,2480.1,2479.6,1.16203766]
[1747540265205,15.118,2479.7,2479.6,1.16203766]
[1747540265406,15.118,2479.7,2479.6,0.93589395]
[1747540265812,19.15074589,2479.7,2479.6,0.93589395]
[1747540266204,19.15074589,2479.7,2479.6,1.16205664]
[1747540267546,15.118,2479.7,2479.6,1.16205664]
[1747540267841,0.7953,2480.0,2479.6,1.16205664]
[1747540268047,15.118,2479.9,2479.8,0.55]
[1747540268811,19.15042066,2479.9,2479.8,0.93589395]
[1747540269012,19.15042066,2479.9,2479.8,0.38589395]
[1747540271774,19.15042066,2479.9,2479.8,0.61246058]
[1747540272332,15.117,2479.9,2479.8,1.16246058]
[1747540272533,19.14942066,2479.9,2479.8,1.16246058]
[1747540273479,11.59242066,2479.9,2479.8,1.16246058]
[1747540273637,19.14942066,2479.9,2479.8,1.16246058]
[1747540273969,15.117,2479.9,2479.8,1.16246058]
[1747540274666,19.14942066,2479.9,2479.8,1.16246058]
[1747540275170,4.03225806,2480.0,2479.8,0.61246058]
[1747540275331,4.03242066,2479.9,2479.8,1.16246058]
[1747540275829,4.03225806,2480.0,2479.8,1.16246058]
[1747540275830,4.03236914,2480.0,2479.8,1.16246058]
[1747540276470,4.03236914,2480.0,2479.9,0.38589395]
[1747540278479,4.03236914,2480.0,2479.9,0.61246058]
[1747540286503,6.26009907,2480.0,2479.9,0.61246058]
[1747540286804,14.26009907,2480.0,2479.9,0.38589395]
[1747540288214,4.03258327,2479.8,2479.7,0.38589395]
[1747540288391,4.03258327,2479.8,2479.7,0.61251405]
[1747540290125,11.58758327,2479.8,2479.7,0.61251405]
[1747540290730,11.58758327,2479.8,2479.7,0.38589395]
[1747540291241,19.14358327,2479.8,2479.7,0.38589395]
[1747540291733,4.03258327,2479.8,2479.7,0.38589395]
[1747540291920,19.14358327,2479.8,2479.7,0.38589395]
[1747540292450,19.14358327,2479.8,2479.7,0.61243161]
[1747540293046,19.14358327,2479.8,2479.7,0.38589395]
[1747540304143,19.14158327,2479.8,2479.7,0.38589395]
[1747540305544,11.58858327,2479.8,2479.7,0.38589395]
[1747540305734,19.14158327,2479.8,2479.7,0.38589395]
[1747540311917,19.14158327,2479.8,2479.7,0.61246903]
[1747540320765,19.97058327,2479.8,2479.7,0.61246903]
[1747540322379,62.4962702,2479.8,2479.7,0.61246903]
[1747540322563,62.4962702,2479.8,2479.7,0.38589395]
[1747540322564,53.1039432,2479.8,2479.7,0.38589395]
[1747540322768,53.31446436,2479.8,2479.7,0.38589395]
[1747540323267,4.03307118,2479.5,2479.4,0.48209639]
[1747540323566,7.05680114,2479.5,2479.4,0.48209639]
[1747540325766,4.03358657,2479.2,2478.8,1.03209639]
[1747540325970,4.03397146,2479.0,2478.8,1.03209639]
[1747540326367,4.03404735,2478.9,2478.8,1.03209639]
[1747540326771,4.03396678,2479.0,2478.8,1.03209639]
[1747540326961,4.03388463,2479.0,2478.8,1.03209639]
[1747540327158,4.03388463,2479.0,2478.9,1.16279953]
[1747540336586,11.58288463,2479.0,2478.9,1.16279953]
[1747540337863,11.58288463,2479.0,2478.9,0.61279953]
[1747540337864,12.13645346,2479.0,2478.9,0.61279953]
[1747540339788,4.03437285,2478.7,2478.6,1.03209639]
[1747540340187,4.03437285,2478.7,2478.6,1.25829644]
[1747540340690,4.03427776,2478.8,2478.6,1.25829644]
[1747540340988,4.03427776,2478.8,2478.7,0.22620005]
[1747540341700,4.03427776,2478.8,2478.7,0.61214205]
[1747540348903,11.58327776,2478.8,2478.7,0.61214205]
[1747540352007,19.13027776,2478.8,2478.7,0.61214205]
[1747540354504,19.13027776,2478.8,2478.7,0.385942]
[1747540354706,19.90527776,2478.8,2478.7,0.385942]
[1747540355406,26.10451048,2478.8,2478.7,0.385942]
[1747540357311,4.03478548,2478.5,2478.4,0.55]
[1747540357821,22.07023272,2478.8,2478.4,0.55]
[1747540357822,4.03449917,2478.7,2478.5,1.3689]
[1747540358120,19.12953562,2478.6,2478.5,1.3689]
[1747540358613,19.12953562,2478.6,2478.5,1.75542144]
[1747540358793,19.12953562,2478.6,2478.5,1.98189559]
[1747540360223,19.12953562,2478.6,2478.5,1.16299559]
[1747540367824,19.12953562,2478.6,2478.5,0.61299559]
[1747540377264,11.58353562,2478.6,2478.5,0.61299559]
[1747540377466,19.12553562,2478.6,2478.5,0.61299559]
[1747540380377,11.58353562,2478.6,2478.5,1.16299559]
[1747540380532,19.12553562,2478.6,2478.5,1.16299559]
[1747540382567,19.12553562,2478.6,2478.5,0.61299559]
[1747540386183,19.12353562,2478.6,2478.5,0.61299559]
[1747540387269,19.11853562,2478.6,2478.5,0.61299559]
[1747540387465,4.03453562,2478.6,2478.5,0.61299559]
[1747540387680,19.11853562,2478.6,2478.5,0.61299559]
[1747540389087,4.03453562,2478.6,2478.5,1.16299559]
[1747540389243,19.11853562,2478.6,2478.5,1.16299559]
[1747540394989,19.11853562,2478.6,2478.5,0.61299559]
[1747540400186,11.57853562,2478.6,2478.5,0.61299559]
[1747540400365,19.11653562,2478.6,2478.5,0.61299559]
[1747540400565,4.03453562,2478.6,2478.5,1.16299559]
[1747540400885,19.11653562,2478.6,2478.5,1.16299559]
[1747540403097,11.57853562,2478.6,2478.5,1.16299559]
[1747540403276,19.11553562,2478.6,2478.5,1.16299559]
[1747540413208,19.11553562,2478.6,2478.5,0.61299559]
[1747540431083,19.11553562,2478.6,2478.5,0.38652144]
[1747540431620,19.11553562,2478.6,2478.5,0.61341416]
[1747540432620,19.11553562,2478.6,2478.5,0.61341751]
[1747540440720,11.57853562,2478.6,2478.5,0.61341751]
[1747540440929,15.057,2478.6,2478.5,1.16341751]
[1747540442727,7.529,2478.6,2478.5,1.16341751]
[1747540442928,15.056,2478.6,2478.5,1.16341751]
[1747540444429,19.09053562,2478.6,2478.5,1.16341751]
[1747540448105,19.08953562,2478.6,2478.5,1.16341751]
[1747540453138,4.03445199,2478.7,2478.5,1.16341751]